fUSD/lending_fUSD_20250525
["ID","MTS","AMOUNT","RATE_DAILY","PERIOD"]
[362336025,1748203837230,-447.32236259,0.00019994,2]
[362336026,1748203837239,-452.76350386,0.00019994,2]
[362336027,1748203837248,-420.0,0.00019994,2]
[362336028,1748203837257,-420.0,0.00019994,2]
[362336029,1748203837267,-420.0,0.00019994,2]
[362336030,1748203837276,-420.0,0.00019994,2]
[362336031,1748203837285,-420.0,0.00019994,2]
[362336032,1748203837295,-420.0,0.00019994,2]
[362336033,1748203837304,-420.0,0.00019994,2]
[362336034,1748203837313,-420.0,0.00019994,2]
[362336035,1748203837322,-420.0,0.00019994,2]
[362336037,1748203837331,-420.0,0.00019994,2]
[362336039,1748203837343,-420.0,0.00019994,2]
[362336040,1748203837352,-420.0,0.00019994,2]
[362336041,1748203837361,-420.0,0.00019994,2]
[362336042,1748203837370,-420.0,0.00019994,2]
[362336043,1748203837380,-420.0,0.00019994,2]
[362336044,1748203837390,-420.0,0.00019994,2]
[362336045,1748203837399,-420.0,0.00019994,2]
[362336046,1748203837408,-372.67949869,0.00019994,2]
[362336047,1748203837417,-357.89365835,0.00019994,2]
[362336048,1748203837428,-429.08,0.00019994,2]
[362336049,1748203837438,-420.0,0.00019994,2]
[362336050,1748203837447,-420.0,0.00019994,2]
[362336051,1748203837456,-420.0,0.00019994,2]
[362336052,1748203837465,-419.0312762,0.00019994,2]
[362336053,1748203837475,-420.0,0.00019994,2]
[362336054,1748203837485,-420.0,0.00019994,2]
[362336055,1748203837494,-500.0,0.00019994,2]
[362336056,1748203837503,-1102.18,0.00019994,2]
[362336057,1748203837513,-420.0,0.00019994,2]
[362336058,1748203837522,-420.0,0.00019994,2]
[362336059,1748203837531,-420.0,0.00019994,2]
[362336060,1748203837542,-420.0,0.00019994,2]
[362336061,1748203837552,-375.77260641,0.00019994,2]
[362336062,1748203837561,-420.0,0.00019994,2]
[362336063,1748203837571,-420.0,0.00019994,2]
[362336064,1748203837581,-420.0,0.00019994,2]
[362336065,1748203837592,-420.0,0.00019994,2]
[362336066,1748203837602,-420.0,0.00019994,2]
[362336067,1748203837612,-420.0,0.00019994,2]
[362336068,1748203837622,-420.0,0.00019994,2]
[362336069,1748203837632,-6486.1268808,0.00019995,2]
[362336070,1748203837643,-8315.0428559,0.00019995,2]
[362336071,1748203837655,-148045.1352677,0.00019995,2]
[362336072,1748203837665,-5476.3233069,0.00019995,2]
[362336073,1748203837675,-15551.13365083,0.00019997,2]
[362336081,1748203837915,-872.9603352,0.00019997,2]
[362336083,1748203837927,-20709.50954103,0.00019997,2]
[362336085,1748203837939,-32810.26990785,0.00019997,2]
[362336087,1748203837950,-1845.10366259,0.00019997,2]
[362336089,1748203837963,-302.0,0.00019997,2]
[362336092,1748203837976,-35992.31857075,0.00019997,2]
[362336094,1748203837987,-6073.67289306,0.00019997,2]
[362336096,1748203838002,-420.0,0.00019994,2]
[362336098,1748203838012,-1273.6999999,0.00019997,2]
[362336100,1748203838023,-6346.50000008,0.00019997,2]
[362336102,1748203838035,-2792.24553182,0.00019997,2]
[362336129,1748203838264,-42989.30343004,0.00019997,2]
[362336131,1748203838275,-420.0,0.00019997,2]
[362336133,1748203838285,-420.0,0.00019997,2]
[362336135,1748203838295,-420.0,0.00019997,2]
[362336137,1748203838305,-420.0,0.00019997,2]
[362336139,1748203838315,-420.0,0.00019997,2]
[362336141,1748203838325,-420.0,0.00019997,2]
[362336143,1748203838334,-420.0,0.00019997,2]
[362336144,1748203838343,-420.0,0.00019997,2]
[362336146,1748203838354,-420.0,0.00019997,2]
[362336148,1748203838363,-221.52,0.00019997,2]
[362336150,1748203838373,-420.0,0.00019997,2]
[362336151,1748203838383,-420.0,0.00019997,2]
[362336153,1748203838393,-420.0,0.00019997,2]
[362336155,1748203838402,-420.0,0.00019997,2]
[362336157,1748203838412,-420.0,0.00019997,2]
[362336159,1748203838422,-420.0,0.00019997,2]
[362336161,1748203838431,-429.08,0.00019997,2]
[362336163,1748203838440,-420.0,0.00019997,2]
[362336165,1748203838450,-420.0,0.00019997,2]
[362336167,1748203838460,-420.0,0.00019997,2]
[362336169,1748203838470,-420.0,0.00019997,2]
[362336171,1748203838479,-1102.18,0.00019997,2]
[362336173,1748203838489,-420.0,0.00019997,2]
[362336175,1748203838498,-420.0,0.00019997,2]
[362336176,1748203838508,-420.0,0.00019997,2]
[362336178,1748203838518,-420.0,0.00019997,2]
[362336180,1748203838527,-420.0,0.00019997,2]
[362336182,1748203838537,-4039.15846508,0.00019997,2]
[362336188,1748203838579,-59.44153492,0.00019997,2]
[362336189,1748203838589,-519.29,0.00019997,2]
[362336192,1748203838601,-277.85643368,0.00019997,2]
[362336194,1748203838618,-190.44356632,0.00019997,2]
[362336196,1748203838628,-204.42124139,0.00019998,2]
[362336198,1748203838638,-251.28314467,0.00019998,2]
[362336200,1748203838650,-168.71685533,0.00019998,2]
[362336202,1748203838660,-420.0,0.00019998,2]
[362336204,1748203838669,-402.66399099,0.00019998,2]
[362336206,1748203838680,-420.0,0.00019998,2]
[362336207,1748203838690,-420.0,0.00019998,2]
[362336208,1748203838699,-420.0,0.00019998,2]
[362336209,1748203838709,-136.82139706,0.00019998,2]
[362336210,1748203838722,-334.81478173,0.00019998,2]
[362336211,1748203838732,-170.98300941,0.00019998,2]
[362336212,1748203838741,-236.61350787,0.00019998,2]
[362336213,1748203838753,-164.63067378,0.00019998,2]
[362336214,1748203838763,-285.36932622,0.00019998,2]
[362336215,1748203838774,-134.63067378,0.00019998,2]
[362336216,1748203838784,-503.47785674,0.00019998,2]
[362336217,1748203838793,-420.0,0.00019998,2]
[362336218,1748203838803,-420.0,0.00019998,2]
[362336219,1748203838812,-420.0,0.00019998,2]
[362336220,1748203838821,-420.0,0.00019998,2]
[362336221,1748203838831,-127.6418583,0.00019998,2]
[362336222,1748203838846,-178.74176812,0.00019998,2]
[362336223,1748203838856,-420.0,0.00019998,2]
[362336224,1748203838865,-422.91185983,0.00019998,2]
[362336225,1748203838875,-81.6637339,0.00019998,2]
[362336226,1748203838888,-344.55979014,0.00019998,2]
[362336227,1748203838897,-424.30686781,0.00019998,2]
[362336228,1748203838907,-421.96952346,0.00019998,2]
[362336229,1748203838916,-64.15284983,0.00019998,2]
[362336230,1748203838929,-357.62557641,0.00019998,2]
[362336231,1748203838938,-420.0,0.00019998,2]
[362336232,1748203838947,-420.91644907,0.00019998,2]
[362336233,1748203838957,-420.0,0.00019998,2]
[362336234,1748203838968,-420.0,0.00019998,2]
[362336235,1748203838979,-426.43065096,0.00019998,2]
[362336236,1748203838988,-420.0,0.00019998,2]
[362336237,1748203838997,-386.37469517,0.00019998,2]
[362336238,1748203839007,-420.0,0.00019998,2]
[362336239,1748203839016,-422.04682813,0.00019998,2]
[362336240,1748203839025,-423.2551823,0.00019998,2]
[362336241,1748203839035,-426.12362533,0.00019998,2]
[362336242,1748203839045,-420.0,0.00019998,2]
[362336243,1748203839055,-423.38092092,0.00019998,2]
[362336244,1748203839065,-421.8870336,0.00019998,2]
[362336245,1748203839074,-422.06145915,0.00019998,2]
[362336246,1748203839084,-422.20577851,0.00019998,2]
[362336247,1748203839093,-421.59199544,0.00019998,2]
[362336248,1748203839103,-421.15674192,0.00019998,2]
[362336249,1748203839112,-380.0,0.00019998,2]
[362336250,1748203839121,-398.63360775,0.00019998,2]
[362336251,1748203839131,-420.0,0.00019998,2]
[362336252,1748203839140,-380.0,0.00019998,2]
[362336253,1748203839149,-420.0,0.00019998,2]
[362336254,1748203839159,-435.68314988,0.00019998,2]
[362336255,1748203839168,-380.0,0.00019998,2]
[362336256,1748203839177,-420.0,0.00019998,2]
[362336257,1748203839186,-388.12506097,0.00019998,2]
[362336258,1748203839195,-430.84155409,0.00019998,2]
[362336259,1748203839205,-380.0,0.00019998,2]
[362336260,1748203839214,-380.0,0.00019998,2]
[362336261,1748203839223,-380.0,0.00019998,2]
[362336262,1748203839232,-420.0,0.00019998,2]
[362336263,1748203839242,-420.0,0.00019998,2]
[362336264,1748203839251,-438.21,0.00019998,2]
[362336265,1748203839261,-380.0,0.00019998,2]
[362336266,1748203839270,-420.0,0.00019998,2]
[362336267,1748203839280,-380.0,0.00019998,2]
[362336268,1748203839293,-495.88,0.00019998,2]
[362336269,1748203839305,-380.0,0.00019998,2]
[362336270,1748203839315,-420.0,0.00019998,2]
[362336271,1748203839324,-380.0,0.00019998,2]
[362336272,1748203839334,-380.0,0.00019998,2]
[362336273,1748203839344,-380.0,0.00019998,2]
[362336274,1748203839354,-420.0,0.00019998,2]
[362336275,1748203839363,-380.0,0.00019998,2]
[362336276,1748203839373,-508.14,0.00019998,2]
[362336277,1748203839382,-420.0,0.00019998,2]
[362336278,1748203839392,-180.02756421,0.00019998,2]
[362336279,1748203839401,-404.47453624,0.00019998,2]
[362336280,1748203839411,-420.0,0.00019998,2]
[362336281,1748203839420,-274.03153058,0.00019998,2]
[362336282,1748203839429,-420.0,0.00019998,2]
[362336284,1748203839438,-394.5063303,0.00019998,2]
[362336285,1748203839448,-420.33616694,0.00019998,2]
[362336286,1748203839457,-154.79542879,0.00019998,2]
[362336287,1748203839467,-420.0,0.00019998,2]
[362336288,1748203839476,-488.10375859,0.00019998,2]
[362336289,1748203839486,-420.0,0.00019998,2]
[362336291,1748203839495,-420.0,0.00019998,2]
[362336292,1748203839505,-420.0,0.00019998,2]
[362336293,1748203839515,-420.0,0.00019998,2]
[362336294,1748203839524,-380.0,0.00019998,2]
[362336295,1748203839534,-403.6,0.00019998,2]
[362336296,1748203839544,-420.0,0.00019998,2]
[362336297,1748203839553,-420.0,0.00019998,2]
[362336298,1748203839563,-380.0,0.00019998,2]
[362336299,1748203839572,-433.79441793,0.00019998,2]
[362336300,1748203839582,-268.94,0.00019998,2]
[362336301,1748203839592,-420.0,0.00019998,2]
[362336302,1748203839602,-422.93271653,0.00019998,2]
[362336303,1748203839612,-540.46,0.00019998,2]
[362336304,1748203839622,-420.0,0.00019998,2]
[362336305,1748203839631,-420.0,0.00019998,2]
[362336306,1748203839640,-424.43477808,0.00019998,2]
[362336307,1748203839650,-420.0,0.00019998,2]
[362336308,1748203839659,-420.0,0.00019998,2]
[362336309,1748203839669,-257.14,0.00019998,2]
[362336310,1748203839678,-428.16359085,0.00019998,2]
[362336311,1748203839688,-424.06499065,0.00019998,2]
[362336312,1748203839698,-424.02450799,0.00019998,2]
[362336313,1748203839707,-420.0,0.00019998,2]
[362336314,1748203839717,-420.0,0.00019998,2]
[362336315,1748203839726,-420.0,0.00019998,2]
[362336316,1748203839735,-420.0,0.00019998,2]
[362336317,1748203839744,-380.0,0.00019998,2]
[362336318,1748203839754,-420.0,0.00019998,2]
[362336319,1748203839763,-420.0,0.00019998,2]
[362336320,1748203839772,-423.62012914,0.00019998,2]
[362336321,1748203839781,-380.0,0.00019998,2]
[362336322,1748203839790,-380.0,0.00019998,2]
[362336323,1748203839800,-420.0,0.00019998,2]
[362336324,1748203839810,-420.0,0.00019998,2]
[362336325,1748203839819,-420.0,0.00019998,2]
[362336326,1748203839828,-424.18081479,0.00019998,2]
[362336327,1748203839837,-428.04982686,0.00019998,2]
[362336328,1748203839847,-423.42374292,0.00019998,2]
[362336329,1748203839857,-420.0,0.00019998,2]
[362336330,1748203839866,-420.0,0.00019998,2]
[362336331,1748203839875,-511.51077353,0.00019998,2]
[362336332,1748203839889,-420.0,0.00019998,2]
[362336333,1748203839898,-425.41315918,0.00019998,2]
[362336334,1748203839907,-426.5600458,0.00019998,2]
[362336335,1748203839917,-223.44094803,0.00019998,2]
[362336336,1748203839926,-424.18032587,0.00019998,2]
[362336337,1748203839935,-420.0,0.00019998,2]
[362336338,1748203839945,-420.0,0.00019998,2]
[362336339,1748203839954,-420.0,0.00019998,2]
[362336340,1748203839964,-504.34,0.00019998,2]
[362336341,1748203839974,-427.54557223,0.00019998,2]
[362336342,1748203839983,-426.25958995,0.00019998,2]
[362336343,1748203839992,-420.0,0.00019998,2]
[362336344,1748203840002,-420.0,0.00019998,2]
[362336345,1748203840011,-420.0,0.00019998,2]
[362336346,1748203840020,-420.54284156,0.00019998,2]
[362336347,1748203840030,-422.78471216,0.00019998,2]
[362336348,1748203840039,-422.72108728,0.00019998,2]
[362336349,1748203840049,-422.42860891,0.00019998,2]
[362336350,1748203840059,-526.08,0.00019998,2]
[362336351,1748203840068,-425.9690065,0.00019998,2]
[362336352,1748203840077,-422.4348812,0.00019998,2]
[362336353,1748203840091,-425.0232435,0.00019998,2]
[362336354,1748203840100,-420.0,0.00019998,2]
[362336355,1748203840111,-420.0,0.00019998,2]
[362336356,1748203840124,-420.0,0.00019998,2]
[362336357,1748203840135,-420.0,0.00019998,2]
[362336358,1748203840147,-420.0,0.00019998,2]
[362336359,1748203840158,-421.94883792,0.00019998,2]
[362336360,1748203840169,-420.0,0.00019998,2]
[362336361,1748203840179,-428.45,0.00019998,2]
[362336362,1748203840188,-420.0,0.00019998,2]
[362336364,1748203840199,-420.0,0.00019998,2]
[362336366,1748203840208,-400.82332067,0.00019998,2]
[362336368,1748203840218,-420.0,0.00019998,2]
[362336370,1748203840227,-561.3,0.00019998,2]
[362336372,1748203840240,-440.06460659,0.00019998,2]
[362336374,1748203840250,-420.0,0.00019998,2]
[362336376,1748203840259,-420.0,0.00019998,2]
[362336378,1748203840269,-420.0,0.00019998,2]
[362336380,1748203840278,-420.0,0.00019998,2]
[362336382,1748203840288,-420.0,0.00019998,2]
[362336384,1748203840300,-420.0,0.00019998,2]
[362336386,1748203840309,-425.05855576,0.00019998,2]
[362336388,1748203840319,-425.43302235,0.00019998,2]
[362336389,1748203840329,-423.80086037,0.00019998,2]
[362336392,1748203840338,-420.0,0.00019998,2]
[362336393,1748203840348,-420.0,0.00019998,2]
[362336396,1748203840358,-306.73164455,0.00019998,2]
[362336397,1748203840373,-423.349113,0.00019998,2]
[362336399,1748203840384,-424.49305468,0.00019998,2]
[362336401,1748203840401,-425.20144136,0.00019998,2]
[362336403,1748203840410,-392.21568668,0.00019998,2]
[362336405,1748203840419,-422.85322013,0.00019998,2]
[362336407,1748203840429,-420.0,0.00019998,2]
[362336409,1748203840438,-420.0,0.00019998,2]
[362336411,1748203840447,-420.0,0.00019998,2]
[362336412,1748203840457,-420.0,0.00019998,2]
[362336413,1748203840466,-258.95523862,0.00019998,2]
[362336414,1748203840475,-529.20416906,0.00019998,2]
[362336415,1748203840486,-302.1247568,0.00019998,2]
[362336416,1748203840496,-420.0,0.00019998,2]
[362336417,1748203840505,-501.05050798,0.00019998,2]
[362336418,1748203840517,-420.0,0.00019998,2]
[362336419,1748203840527,-420.0,0.00019998,2]
[362336420,1748203840539,-420.0,0.00019998,2]
[362336421,1748203840549,-256.59944944,0.00019998,2]
[362336422,1748203840558,-420.0,0.00019998,2]
[362336423,1748203840567,-469.129018,0.00019998,2]
[362336424,1748203840577,-420.0,0.00019998,2]
[362336425,1748203840586,-420.0,0.00019998,2]
[362336426,1748203840595,-420.0,0.00019998,2]
[362336427,1748203840605,-420.0,0.00019998,2]
[362336428,1748203840614,-420.0,0.00019998,2]
[362336429,1748203840624,-420.0,0.00019998,2]
[362336430,1748203840633,-420.0,0.00019998,2]
[362336431,1748203840643,-420.0,0.00019998,2]
[362336432,1748203840652,-504.46,0.00019998,2]
[362336433,1748203840661,-420.0,0.00019998,2]
[362336434,1748203840670,-420.0,0.00019998,2]
[362336435,1748203840680,-420.0,0.00019998,2]
[362336436,1748203840690,-420.0,0.00019998,2]
[362336437,1748203840699,-429.08,0.00019998,2]
[362336438,1748203840709,-420.0,0.00019998,2]
[362336439,1748203840718,-420.0,0.00019998,2]
[362336440,1748203840727,-420.0,0.00019998,2]
[362336441,1748203840737,-420.0,0.00019998,2]
[362336442,1748203840749,-500.0,0.00019998,2]
[362336443,1748203840759,-1102.18,0.00019998,2]
[362336444,1748203840768,-420.0,0.00019998,2]
[362336445,1748203840777,-420.0,0.00019998,2]
[362336446,1748203840786,-420.0,0.00019998,2]
[362336447,1748203840795,-420.0,0.00019998,2]
[362336448,1748203840804,-420.0,0.00019998,2]
[362336449,1748203840813,-420.0,0.00019998,2]
[362336450,1748203840823,-420.0,0.00019998,2]
[362336451,1748203840833,-4098.6,0.00019998,2]
[362336452,1748203840843,-4098.6,0.00019998,2]
[362336453,1748203840852,-534.0,0.00019999,2]
[362336454,1748203840861,-422.02216225,0.00019999,2]
[362336455,1748203840871,-420.0,0.00019999,2]
[362336456,1748203840882,-424.19548977,0.00019999,2]
[362336457,1748203840896,-420.0,0.00019999,2]
[362336458,1748203840906,-420.0,0.00019999,2]
[362336459,1748203840915,-189.78,0.00019999,2]
[362336460,1748203840926,-420.0,0.00019999,2]
[362336461,1748203840935,-420.0,0.00019999,2]
[362336462,1748203840944,-420.0,0.00019999,2]
[362336463,1748203840954,-420.0,0.00019999,2]
[362336464,1748203840965,-420.0,0.00019999,2]
[362336465,1748203840976,-491.22,0.00019999,2]
[362336466,1748203840985,-420.0,0.00019999,2]
[362336467,1748203840994,-420.0,0.00019999,2]
[362336468,1748203841003,-420.0,0.00019999,2]
[362336469,1748203841013,-420.0,0.00019999,2]
[362336470,1748203841023,-371.01,0.00019999,2]
[362336471,1748203841032,-420.0,0.00019999,2]
[362336472,1748203841042,-420.0,0.00019999,2]
[362336473,1748203841051,-420.0,0.00019999,2]
[362336474,1748203841063,-420.0,0.00019999,2]
[362336475,1748203841074,-420.0,0.00019999,2]
[362336476,1748203841084,-420.0,0.00019999,2]
[362336477,1748203841097,-549.63,0.00019999,2]
[362336478,1748203841108,-420.0,0.00019999,2]
[362336479,1748203841119,-420.0,0.00019999,2]
[362336480,1748203841138,-420.0,0.00019999,2]
[362336481,1748203841148,-287.61,0.00019999,2]
[362336482,1748203841159,-380.0,0.00019999,2]
[362336483,1748203841170,-420.0,0.00019999,2]
[362336484,1748203841181,-435.27257874,0.00019999,2]
[362336485,1748203841191,-494.49470498,0.00019999,2]
[362336486,1748203841200,-420.0,0.00019999,2]
[362336487,1748203841210,-424.90962424,0.00019999,2]
[362336488,1748203841220,-420.0,0.00019999,2]
[362336489,1748203841230,-422.76184844,0.00019999,2]
[362336490,1748203841239,-420.0,0.00019999,2]
[362336491,1748203841248,-420.0,0.00019999,2]
[362336492,1748203841257,-420.0,0.00019999,2]
[362336493,1748203841267,-420.0,0.00019999,2]
[362336494,1748203841277,-420.0,0.00019999,2]
[362336495,1748203841286,-420.0,0.00019999,2]
[362336496,1748203841295,-420.0,0.00019999,2]
[362336497,1748203841305,-252.72,0.00019999,2]
[362336498,1748203841317,-420.0,0.00019999,2]
[362336499,1748203841327,-420.0,0.00019999,2]
[362336500,1748203841338,-420.0,0.00019999,2]
[362336501,1748203841348,-369.55653995,0.00019999,2]
[362336502,1748203841359,-420.0,0.00019999,2]
[362336503,1748203841368,-420.0,0.00019999,2]
[362336504,1748203841378,-420.0,0.00019999,2]
[362336505,1748203841388,-421.88934478,0.00019999,2]
[362336506,1748203841399,-420.0,0.00019999,2]
[362336507,1748203841409,-420.0,0.00019999,2]
[362336508,1748203841418,-420.0,0.00019999,2]
[362336509,1748203841428,-420.0,0.00019999,2]
[362336510,1748203841438,-175.04,0.00019999,2]
[362336511,1748203841448,-283.28989192,0.00019999,2]
[362336512,1748203841458,-420.0,0.00019999,2]
[362336513,1748203841469,-420.0,0.00019999,2]
[362336514,1748203841479,-420.0,0.00019999,2]
[362336515,1748203841489,-420.0,0.00019999,2]
[362336516,1748203841498,-420.0,0.00019999,2]
[362336517,1748203841508,-351.47172104,0.00019999,2]
[362336518,1748203841518,-420.0,0.00019999,2]
[362336519,1748203841527,-360.0,0.00019999,2]
[362336520,1748203841536,-400.0,0.00019999,2]
[362336521,1748203841545,-167.24257271,0.00019999,2]
[362336522,1748203841554,-420.0,0.00019999,2]
[362336523,1748203841564,-420.0,0.00019999,2]
[362336524,1748203841573,-420.0,0.00019999,2]
[362336525,1748203841582,-424.35612887,0.00019999,2]
[362336526,1748203841591,-402.87451924,0.00019999,2]
[362336527,1748203841601,-420.0,0.00019999,2]
[362336528,1748203841610,-169.01698886,0.00019999,2]
[362336529,1748203841620,-270.27829885,0.00019999,2]
[362336530,1748203841629,-400.0,0.00019999,2]
[362336531,1748203841638,-153.33126543,0.00019999,2]
[362336532,1748203841647,-420.0,0.00019999,2]
[362336533,1748203841656,-420.0,0.00019999,2]
[362336534,1748203841666,-420.0,0.00019999,2]
[362336535,1748203841675,-420.0,0.00019999,2]
[362336536,1748203841685,-420.0,0.00019999,2]
[362336537,1748203841696,-420.0,0.00019999,2]
[362336538,1748203841705,-420.0,0.00019999,2]
[362336539,1748203841715,-420.0,0.00019999,2]
[362336540,1748203841725,-420.0,0.00019999,2]
[362336541,1748203841735,-420.0,0.00019999,2]
[362336542,1748203841746,-420.0,0.00019999,2]
[362336543,1748203841757,-513.96,0.00019999,2]
[362336544,1748203841766,-420.0,0.00019999,2]
[362336545,1748203841779,-326.67,0.00019999,2]
[362336546,1748203841789,-207.65973154,0.00019999,2]
[362336547,1748203841799,-420.0,0.00019999,2]
[362336548,1748203841808,-420.0,0.00019999,2]
[362336549,1748203841817,-401.945529,0.00019999,2]
[362336550,1748203841826,-420.0,0.00019999,2]
[362336551,1748203841835,-420.0,0.00019999,2]
[362336552,1748203841845,-423.53386122,0.00019999,2]
[362336553,1748203841856,-420.0,0.00019999,2]
[362336554,1748203841866,-420.0,0.00019999,2]
[362336555,1748203841878,-420.0,0.00019999,2]
[362336556,1748203841889,-420.0,0.00019999,2]
[362336557,1748203841898,-420.0,0.00019999,2]
[362336558,1748203841908,-420.0,0.00019999,2]
[362336559,1748203842091,-420.0,0.00019999,2]
[362336560,1748203842102,-296.28,0.00019999,2]
[362336561,1748203842111,-420.0,0.00019999,2]
[362336562,1748203842120,-420.0,0.00019999,2]
[362336563,1748203842130,-420.0,0.00019999,2]
[362336564,1748203842139,-420.0,0.00019999,2]
[362336565,1748203842149,-420.0,0.00019999,2]
[362336566,1748203842159,-420.0,0.00019999,2]
[362336567,1748203842169,-420.0,0.00019999,2]
[362336568,1748203842179,-420.0,0.00019999,2]
[362336569,1748203842189,-420.0,0.00019999,2]
[362336570,1748203842198,-420.0,0.00019999,2]
[362336571,1748203842208,-471.63,0.00019999,2]
[362336572,1748203842218,-238.41,0.00019999,2]
[362336573,1748203842227,-420.0,0.00019999,2]
[362336574,1748203842238,-420.0,0.00019999,2]
[362336575,1748203842249,-565.64,0.00019999,2]
[362336576,1748203842259,-420.0,0.00019999,2]
[362336577,1748203842269,-420.0,0.00019999,2]
[362336578,1748203842279,-360.0,0.00019999,2]
[362336579,1748203842289,-422.06834691,0.00019999,2]
[362336580,1748203842298,-400.0,0.00019999,2]
[362336581,1748203842310,-420.0,0.00019999,2]
[362336582,1748203842322,-420.0,0.00019999,2]
[362336583,1748203842331,-362.43,0.00019999,2]
[362336584,1748203842341,-420.0,0.00019999,2]
[362336585,1748203842351,-424.32147501,0.00019999,2]
[362336586,1748203842360,-420.0,0.00019999,2]
[362336587,1748203842370,-420.0,0.00019999,2]
[362336588,1748203842380,-369.90377636,0.00019999,2]
[362336589,1748203842389,-420.0,0.00019999,2]
[362336590,1748203842399,-360.0,0.00019999,2]
[362336593,1748203842409,-420.0,0.00019999,2]
[362336594,1748203842418,-423.52196534,0.00019999,2]
[362336595,1748203842427,-546.87623646,0.00019999,2]
[362336596,1748203842437,-400.0,0.00019999,2]
[362336597,1748203842446,-420.0,0.00019999,2]
[362336598,1748203842456,-420.0,0.00019999,2]
[362336599,1748203842465,-420.0,0.00019999,2]
[362336600,1748203842474,-245.55,0.00019999,2]
[362336601,1748203842484,-420.0,0.00019999,2]
[362336602,1748203842493,-420.0,0.00019999,2]
[362336603,1748203842503,-422.14683366,0.00019999,2]
[362336604,1748203842512,-447.00285571,0.00019999,2]
[362336605,1748203842521,-420.0,0.00019999,2]
[362336606,1748203842531,-420.94791232,0.00019999,2]
[362336607,1748203842540,-420.0,0.00019999,2]
[362336608,1748203842550,-420.0,0.00019999,2]
[362336609,1748203842559,-420.0,0.00019999,2]
[362336610,1748203842570,-420.0,0.00019999,2]
[362336611,1748203842579,-401.92045555,0.00019999,2]
[362336612,1748203842589,-420.0,0.00019999,2]
[362336613,1748203842598,-360.0,0.00019999,2]
[362336614,1748203842607,-420.0,0.00019999,2]
[362336615,1748203842617,-528.94638924,0.00019999,2]
[362336616,1748203842627,-420.40451588,0.00019999,2]
[362336617,1748203842636,-421.9026018,0.00019999,2]
[362336618,1748203842645,-420.0,0.00019999,2]
[362336619,1748203842655,-420.0,0.00019999,2]
[362336621,1748203842664,-420.0,0.00019999,2]
[362336622,1748203842674,-420.0,0.00019999,2]
[362336623,1748203842683,-420.0,0.00019999,2]
[362336624,1748203842693,-420.0,0.00019999,2]
[362336625,1748203842704,-317.58,0.00019999,2]
[362336626,1748203842714,-420.0,0.00019999,2]
[362336627,1748203842724,-420.0,0.00019999,2]
[362336628,1748203842733,-420.0,0.00019999,2]
[362336629,1748203842743,-425.420368,0.00019999,2]
[362336630,1748203842753,-420.0,0.00019999,2]
[362336631,1748203842762,-420.0,0.00019999,2]
[362336632,1748203842772,-420.0,0.00019999,2]
[362336633,1748203842783,-420.0,0.00019999,2]
[362336634,1748203842792,-422.47400576,0.00019999,2]
[362336635,1748203842802,-420.0,0.00019999,2]
[362336636,1748203842812,-267.84,0.00019999,2]
[362336637,1748203842822,-420.0,0.00019999,2]
[362336638,1748203842831,-405.04,0.00019999,2]